[Event "January 2 Late 2024"]
[Site "https://www.chess.com"]
[Date "2024.01.02"]
[Round "4"]
[White "Gavrilov, Maxim"]
[Black "Curtis, John"]
[Result "0-1"]
[Board "197"]
[TimeControl "180+1"]
[WhiteFideId "24271454"]
[BlackFideId "3200256"]
[WhiteElo "2497"]
[BlackElo "2216"]
[WhiteTeam "RUS"]
[BlackTeam "AUS"]
[WhiteClock "0:00:00"]
[BlackClock "0:00:53"]

1. d4 {[%clk 0:03:00]}  Nf6 {[%clk 0:02:58]} 2. Nf3 {[%clk 0:03:01]}  e6 {[%clk 0:02:53]} 3. c4 {[%clk 0:03:00]}  Bb4+ {[%clk 0:02:52]} 4. Bd2 {[%clk 0:03:00]}  a5 {[%clk 0:02:50]} 5. g3 {[%clk 0:03:00]}  b6 {[%clk 0:02:46]} 6. Bg2 {[%clk 0:02:59]}  Bb7 {[%clk 0:02:45]} 7. O-O {[%clk 0:02:59]}  Bxd2 {[%clk 0:02:45]} 8. Nbxd2 {[%clk 0:02:58]}  O-O {[%clk 0:02:45]} 9. Qc2 {[%clk 0:02:57]}  d5 {[%clk 0:02:35]} 10. Ne5 {[%clk 0:02:46]}  Qc8 {[%clk 0:02:32]} 11. cxd5 {[%clk 0:02:29]}  exd5 {[%clk 0:02:24]} 12. Rac1 {[%clk 0:02:26]}  c6 {[%clk 0:02:23]} 13. e4 {[%clk 0:02:25]}  Qd8 {[%clk 0:02:17]} 14. exd5 {[%clk 0:02:03]}  Nxd5 {[%clk 0:02:14]} 15. a3 {[%clk 0:01:52]}  Ne7 {[%clk 0:01:54]} 16. Ndf3 {[%clk 0:01:33]}  Ra7 {[%clk 0:01:47]} 17. Rfe1 {[%clk 0:01:22]}  h6 {[%clk 0:01:43]} 18. h4 {[%clk 0:01:11]}  Bc8 {[%clk 0:01:42]} 19. Qc3 {[%clk 0:00:54]}  Be6 {[%clk 0:01:34]} 20. Nd2 {[%clk 0:00:50]}  Bd5 {[%clk 0:01:31]} 21. Ne4 {[%clk 0:00:47]}  Nf5 {[%clk 0:01:03]} 22. Red1 {[%clk 0:00:30]}  Rc7 {[%clk 0:01:01]} 23. Nd3 {[%clk 0:00:28]}  Re8 {[%clk 0:00:57]} 24. Re1 {[%clk 0:00:15]}  Rce7 {[%clk 0:00:57]} 25. Ne5 {[%clk 0:00:15]}  f6 {[%clk 0:00:53]} 26. Ng6 {[%clk 0:00:06]}  Rxe4 {[%clk 0:00:53]} 27. Bxe4 {[%clk 0:00:06]}  Rxe4 {[%clk 0:00:53]} 28. Rxe4 {[%clk 0:00:04]}  Bxe4 {[%clk 0:00:53]} 29. Qe3 {[%clk 0:00:00]}  Nxe3 {[%clk 0:00:53]} 0-1

[Event "January 2 Late 2024"]
[Site "https://www.chess.com"]
[Date "2024.01.02"]
[Round "4"]
[White "hoshiboshi"]
[Black "Micic, Aleksa"]
[Result "1-0"]
[Board "200"]
[TimeControl "180+1"]
[BlackFideId "989940"]
[WhiteElo "2142"]
[BlackElo "2434"]
[BlackTeam "SRB"]
[WhiteClock "0:00:03"]
[BlackClock "0:00:04"]

1. e4 {[%clk 0:03:00]}  c5 {[%clk 0:02:59]} 2. Nf3 {[%clk 0:03:00]}  d6 {[%clk 0:02:58]} 3. d4 {[%clk 0:03:01]}  cxd4 {[%clk 0:02:58]} 4. Nxd4 {[%clk 0:03:02]}  Nf6 {[%clk 0:02:58]} 5. Nc3 {[%clk 0:03:02]}  g6 {[%clk 0:02:59]} 6. Be3 {[%clk 0:03:00]}  Bg7 {[%clk 0:03:00]} 7. f3 {[%clk 0:03:00]}  O-O {[%clk 0:03:00]} 8. Qd2 {[%clk 0:03:00]}  Nc6 {[%clk 0:03:01]} 9. Bc4 {[%clk 0:03:00]}  Nxd4 {[%clk 0:03:01]} 10. Bxd4 {[%clk 0:03:00]}  Be6 {[%clk 0:03:02]} 11. Bb3 {[%clk 0:03:00]}  Qa5 {[%clk 0:03:02]} 12. O-O-O {[%clk 0:02:59]}  b5 {[%clk 0:03:03]} 13. Kb1 {[%clk 0:02:57]}  b4 {[%clk 0:03:03]} 14. Nd5 {[%clk 0:02:56]}  Bxd5 {[%clk 0:03:03]} 15. exd5 {[%clk 0:02:55]}  Qb5 {[%clk 0:03:03]} 16. Rhe1 {[%clk 0:02:50]}  a5 {[%clk 0:03:03]} 17. Qe2 {[%clk 0:02:30]}  Qxe2 {[%clk 0:03:02]} 18. Rxe2 {[%clk 0:02:29]}  a4 {[%clk 0:03:03]} 19. Bc4 {[%clk 0:02:28]}  Rfc8 {[%clk 0:03:04]} 20. b3 {[%clk 0:02:24]}  Rc7 {[%clk 0:02:43]} 21. Bb2 {[%clk 0:01:55]}  Kf8 {[%clk 0:02:40]} 22. Bb5 {[%clk 0:01:42]}  axb3 {[%clk 0:02:27]} 23. cxb3 {[%clk 0:01:39]}  Ra5 {[%clk 0:02:23]} 24. Bc6 {[%clk 0:01:27]}  e6 {[%clk 0:02:17]} 25. a3 {[%clk 0:01:03]}  bxa3 {[%clk 0:02:14]} 26. Bc3 {[%clk 0:01:03]}  Rc5 {[%clk 0:02:05]} 27. Bb4 {[%clk 0:01:02]}  Nxd5 {[%clk 0:01:48]} 28. Bxd5 {[%clk 0:01:01]}  exd5 {[%clk 0:00:46]} 29. Bxc5 {[%clk 0:00:50]}  Rxc5 {[%clk 0:00:46]} 30. Ka2 {[%clk 0:00:47]}  Bb2 {[%clk 0:00:45]} 31. b4 {[%clk 0:00:38]}  Rb5 {[%clk 0:00:37]} 32. Kb3 {[%clk 0:00:37]}  d4 {[%clk 0:00:37]} 33. Rc2 {[%clk 0:00:25]}  Bc3 {[%clk 0:00:27]} 34. Kxa3 {[%clk 0:00:20]}  Bxb4+ {[%clk 0:00:20]} 35. Ka4 {[%clk 0:00:20]}  Rb8 {[%clk 0:00:20]} 36. Rb1 {[%clk 0:00:18]}  Ra8+ {[%clk 0:00:19]} 37. Kb5 {[%clk 0:00:17]}  Bc5 {[%clk 0:00:18]} 38. Kc6 {[%clk 0:00:16]}  Ra3 {[%clk 0:00:17]} 39. Rd2 {[%clk 0:00:16]}  Kg7 {[%clk 0:00:17]} 40. Kd5 {[%clk 0:00:15]}  h5 {[%clk 0:00:17]} 41. Ke4 {[%clk 0:00:15]}  Kf6 {[%clk 0:00:17]} 42. Kd5 {[%clk 0:00:13]}  Re3 {[%clk 0:00:17]} 43. Rb7 {[%clk 0:00:09]}  h4 {[%clk 0:00:15]} 44. h3 {[%clk 0:00:08]}  Rc3 {[%clk 0:00:10]} 45. Ra2 {[%clk 0:00:07]}  Rc1 {[%clk 0:00:09]} 46. Re2 {[%clk 0:00:06]}  Rc3 {[%clk 0:00:05]} 47. Ke4 {[%clk 0:00:05]}  Rc4 {[%clk 0:00:03]} 48. Kd5 {[%clk 0:00:05]}  Rc3 {[%clk 0:00:03]} 49. Ke4 {[%clk 0:00:06]}  Rc1 {[%clk 0:00:03]} 50. Kd3 {[%clk 0:00:05]}  Rd1+ {[%clk 0:00:04]} 51. Kc4 {[%clk 0:00:05]}  d3 {[%clk 0:00:03]} 52. Ree7 {[%clk 0:00:02]}  d2 {[%clk 0:00:03]} 53. Rxf7+ {[%clk 0:00:03]}  Ke5 {[%clk 0:00:04]} 54. Rbe7# {[%clk 0:00:03]} 1-0

[Event "January 2 Late 2024"]
[Site "https://www.chess.com"]
[Date "2024.01.02"]
[Round "4"]
[White "Teimouri Yadkuri, Shahdad"]
[Black "tolia123"]
[Result "1-0"]
[Board "202"]
[TimeControl "180+1"]
[WhiteFideId "42515467"]
[WhiteElo "2396"]
[BlackElo "2047"]
[WhiteTeam "IRI"]
[WhiteClock "0:00:07"]
[BlackClock "0:00:00"]

1. e4 {[%clk 0:03:00]}  c5 {[%clk 0:03:00]} 2. Nf3 {[%clk 0:03:01]}  d6 {[%clk 0:03:00]} 3. d4 {[%clk 0:03:01]}  cxd4 {[%clk 0:03:01]} 4. Nxd4 {[%clk 0:03:01]}  Nf6 {[%clk 0:03:01]} 5. Nc3 {[%clk 0:03:01]}  Nc6 {[%clk 0:03:00]} 6. Bg5 {[%clk 0:03:01]}  Qa5 {[%clk 0:03:00]} 7. Bxf6 {[%clk 0:02:47]}  gxf6 {[%clk 0:03:01]} 8. Nb3 {[%clk 0:02:33]}  Qd8 {[%clk 0:02:48]} 9. Qd2 {[%clk 0:02:31]}  Bg7 {[%clk 0:02:47]} 10. O-O-O {[%clk 0:02:29]}  Be6 {[%clk 0:02:47]} 11. f4 {[%clk 0:02:28]}  a5 {[%clk 0:02:46]} 12. Nd4 {[%clk 0:02:24]}  Bd7 {[%clk 0:02:35]} 13. Bc4 {[%clk 0:02:16]}  Qc7 {[%clk 0:02:29]} 14. Nd5 {[%clk 0:02:12]}  Qd8 {[%clk 0:02:25]} 15. Nf5 {[%clk 0:02:00]}  Bxf5 {[%clk 0:02:10]} 16. exf5 {[%clk 0:02:01]}  Rb8 {[%clk 0:02:08]} 17. Rhe1 {[%clk 0:01:58]}  b5 {[%clk 0:02:08]} 18. Bd3 {[%clk 0:01:46]}  O-O {[%clk 0:02:01]} 19. Re3 {[%clk 0:01:44]}  Re8 {[%clk 0:01:59]} 20. Rg3 {[%clk 0:01:40]}  Kh8 {[%clk 0:01:58]} 21. Qe2 {[%clk 0:01:31]}  e6 {[%clk 0:01:50]} 22. Ne3 {[%clk 0:01:31]}  e5 {[%clk 0:01:37]} 23. Rf1 {[%clk 0:01:09]}  exf4 {[%clk 0:01:31]} 24. Rxf4 {[%clk 0:01:09]}  Bh6 {[%clk 0:01:31]} 25. Rh4 {[%clk 0:01:09]}  Bg5 {[%clk 0:01:25]} 26. Rxh7+ {[%clk 0:00:56]}  Kxh7 {[%clk 0:01:24]} 27. Qh5+ {[%clk 0:00:57]}  Kg7 {[%clk 0:01:17]} 28. Rxg5+ {[%clk 0:00:37]}  fxg5 {[%clk 0:01:16]} 29. Ng4 {[%clk 0:00:37]}  Rh8 {[%clk 0:00:47]} 30. f6+ {[%clk 0:00:38]}  Qxf6 {[%clk 0:00:39]} 31. Nxf6 {[%clk 0:00:38]}  Rxh5 {[%clk 0:00:39]} 32. Nxh5+ {[%clk 0:00:39]}  Kh6 {[%clk 0:00:39]} 33. Ng3 {[%clk 0:00:40]}  Ne5 {[%clk 0:00:37]} 34. Be4 {[%clk 0:00:40]}  Rd8 {[%clk 0:00:31]} 35. Nf5+ {[%clk 0:00:40]}  Kh5 {[%clk 0:00:24]} 36. Bd5 {[%clk 0:00:37]}  Kg6 {[%clk 0:00:22]} 37. Nd4 {[%clk 0:00:36]}  f5 {[%clk 0:00:17]} 38. Kd2 {[%clk 0:00:34]}  b4 {[%clk 0:00:17]} 39. Ke3 {[%clk 0:00:33]}  Kf6 {[%clk 0:00:17]} 40. h3 {[%clk 0:00:32]}  g4 {[%clk 0:00:17]} 41. hxg4 {[%clk 0:00:30]}  Nxg4+ {[%clk 0:00:18]} 42. Kf4 {[%clk 0:00:29]}  Ne5 {[%clk 0:00:17]} 43. Nxf5 {[%clk 0:00:29]}  Ng6+ {[%clk 0:00:12]} 44. Kg4 {[%clk 0:00:28]}  Ne5+ {[%clk 0:00:13]} 45. Kf4 {[%clk 0:00:28]}  Rf8 {[%clk 0:00:13]} 46. Ne3 {[%clk 0:00:27]}  Kg6+ {[%clk 0:00:12]} 47. Ke4 {[%clk 0:00:27]}  Kg5 {[%clk 0:00:12]} 48. Be6 {[%clk 0:00:25]}  Re8 {[%clk 0:00:09]} 49. Kd5 {[%clk 0:00:24]}  Kf4 {[%clk 0:00:09]} 50. Nf5 {[%clk 0:00:23]}  Ng6 {[%clk 0:00:05]} 51. Nxd6 {[%clk 0:00:20]}  Rd8 {[%clk 0:00:03]} 52. Kc6 {[%clk 0:00:19]}  Ke5 {[%clk 0:00:03]} 53. Nf7+ {[%clk 0:00:18]}  Kxe6 {[%clk 0:00:03]} 54. Nxd8+ {[%clk 0:00:19]}  Ke7 {[%clk 0:00:03]} 55. Nb7 {[%clk 0:00:19]}  Ne5+ {[%clk 0:00:03]} 56. Kb5 {[%clk 0:00:19]}  Ng4 {[%clk 0:00:02]} 57. Nxa5 {[%clk 0:00:19]}  Ne3 {[%clk 0:00:03]} 58. Kxb4 {[%clk 0:00:19]}  Nxc2+ {[%clk 0:00:03]} 59. Kc5 {[%clk 0:00:19]}  Ne3 {[%clk 0:00:04]} 60. b4 {[%clk 0:00:19]}  Nxg2 {[%clk 0:00:04]} 61. Nc4 {[%clk 0:00:18]}  Kd7 {[%clk 0:00:05]} 62. b5 {[%clk 0:00:18]}  Kc7 {[%clk 0:00:06]} 63. a4 {[%clk 0:00:18]}  Nf4 {[%clk 0:00:05]} 64. b6+ {[%clk 0:00:16]}  Kb8 {[%clk 0:00:05]} 65. a5 {[%clk 0:00:16]}  Nd3+ {[%clk 0:00:05]} 66. Kb5 {[%clk 0:00:15]}  Nf4 {[%clk 0:00:04]} 67. a6 {[%clk 0:00:15]}  Nd5 {[%clk 0:00:04]} 68. Ne5 {[%clk 0:00:13]}  Ka8 {[%clk 0:00:00]} 69. Nd7 {[%clk 0:00:07]} 1-0

[Event "January 2 Late 2024"]
[Site "https://www.chess.com"]
[Date "2024.01.02"]
[Round "4"]
[White "Fareh, Youness"]
[Black "Sokolov, Andrei"]
[Result "0-1"]
[Board "204"]
[TimeControl "180+1"]
[WhiteFideId "9000526"]
[BlackFideId "11600306"]
[WhiteElo "2011"]
[BlackElo "2359"]
[WhiteTeam "MAR"]
[BlackTeam "LAT"]
[WhiteClock "0:00:27"]
[BlackClock "0:00:06"]

1. Nf3 {[%clk 0:03:00]}  d5 {[%clk 0:02:57]} 2. c4 {[%clk 0:03:00]}  c6 {[%clk 0:02:56]} 3. d4 {[%clk 0:02:58]}  Nf6 {[%clk 0:02:56]} 4. g3 {[%clk 0:02:58]}  dxc4 {[%clk 0:02:54]} 5. a4 {[%clk 0:02:56]}  a5 {[%clk 0:02:51]} 6. Nc3 {[%clk 0:02:55]}  Bf5 {[%clk 0:02:44]} 7. Bg2 {[%clk 0:02:50]}  Ne4 {[%clk 0:02:41]} 8. O-O {[%clk 0:02:48]}  Nxc3 {[%clk 0:02:32]} 9. bxc3 {[%clk 0:02:47]}  Be4 {[%clk 0:02:32]} 10. Ba3 {[%clk 0:02:38]}  Nd7 {[%clk 0:02:15]} 11. Qd2 {[%clk 0:02:31]}  g6 {[%clk 0:02:06]} 12. Qf4 {[%clk 0:02:29]}  Nf6 {[%clk 0:02:00]} 13. Ne5 {[%clk 0:02:17]}  Bxg2 {[%clk 0:01:56]} 14. Kxg2 {[%clk 0:02:18]}  Bg7 {[%clk 0:01:52]} 15. Rab1 {[%clk 0:02:10]}  Qc8 {[%clk 0:01:47]} 16. e4 {[%clk 0:02:06]}  h6 {[%clk 0:01:29]} 17. Nxc4 {[%clk 0:02:05]}  g5 {[%clk 0:01:27]} 18. Qe3 {[%clk 0:02:04]}  Nd7 {[%clk 0:01:11]} 19. e5 {[%clk 0:01:59]}  c5 {[%clk 0:00:56]} 20. d5 {[%clk 0:01:49]}  O-O {[%clk 0:00:54]} 21. e6 {[%clk 0:01:46]}  fxe6 {[%clk 0:00:42]} 22. dxe6 {[%clk 0:01:46]}  Nf6 {[%clk 0:00:38]} 23. Nb6 {[%clk 0:01:42]}  Qc6+ {[%clk 0:00:37]} 24. f3 {[%clk 0:01:35]}  Rad8 {[%clk 0:00:36]} 25. Bxc5 {[%clk 0:01:32]}  Nd5 {[%clk 0:00:28]} 26. Nxd5 {[%clk 0:01:31]}  Rxd5 {[%clk 0:00:29]} 27. Bxe7 {[%clk 0:01:29]}  Re8 {[%clk 0:00:24]} 28. Rb6 {[%clk 0:01:20]}  Qxc3 {[%clk 0:00:19]} 29. Qxc3 {[%clk 0:01:16]}  Bxc3 {[%clk 0:00:19]} 30. Ba3 {[%clk 0:01:08]}  Rd2+ {[%clk 0:00:17]} 31. Kh3 {[%clk 0:01:08]}  Bd4 {[%clk 0:00:11]} 32. e7 {[%clk 0:01:03]}  Bxb6 {[%clk 0:00:10]} 33. f4 {[%clk 0:00:59]}  gxf4 {[%clk 0:00:10]} 34. Rxf4 {[%clk 0:00:59]}  Bg1 {[%clk 0:00:09]} 35. Rf8+ {[%clk 0:00:58]}  Kh7 {[%clk 0:00:09]} 36. Rxe8 {[%clk 0:00:55]}  Rxh2+ {[%clk 0:00:08]} 37. Kg4 {[%clk 0:00:55]}  h5+ {[%clk 0:00:09]} 38. Kg5 {[%clk 0:00:50]}  Be3+ {[%clk 0:00:09]} 39. Kf5 {[%clk 0:00:49]}  Rf2+ {[%clk 0:00:09]} 40. Ke4 {[%clk 0:00:49]}  Re2 {[%clk 0:00:06]} 41. Kf3 {[%clk 0:00:48]}  Re1 {[%clk 0:00:04]} 42. Rh8+ {[%clk 0:00:44]}  Kxh8 {[%clk 0:00:03]} 43. e8=Q+ {[%clk 0:00:45]}  Kh7 {[%clk 0:00:04]} 44. Qxh5+ {[%clk 0:00:45]}  Kg7 {[%clk 0:00:03]} 45. Bb2+ {[%clk 0:00:45]}  Kf8 {[%clk 0:00:03]} 46. Qf5+ {[%clk 0:00:44]}  Ke7 {[%clk 0:00:03]} 47. Qe5+ {[%clk 0:00:42]}  Kd7 {[%clk 0:00:04]} 48. Qd5+ {[%clk 0:00:41]}  Ke7 {[%clk 0:00:04]} 49. Qxb7+ {[%clk 0:00:39]}  Ke6 {[%clk 0:00:03]} 50. Qb6+ {[%clk 0:00:38]}  Kf7 {[%clk 0:00:04]} 51. Qa7+ {[%clk 0:00:37]}  Bxa7 {[%clk 0:00:03]} 52. g4 {[%clk 0:00:35]}  Rf1+ {[%clk 0:00:03]} 53. Ke2 {[%clk 0:00:35]}  Rg1 {[%clk 0:00:03]} 54. Kf3 {[%clk 0:00:35]}  Rb1 {[%clk 0:00:03]} 55. Bd4 {[%clk 0:00:34]}  Rb3+ {[%clk 0:00:03]} 56. Ke4 {[%clk 0:00:33]}  Bxd4 {[%clk 0:00:04]} 57. Kxd4 {[%clk 0:00:34]}  Rb4+ {[%clk 0:00:05]} 58. Ke5 {[%clk 0:00:34]}  Rxa4 {[%clk 0:00:06]} 59. g5 {[%clk 0:00:34]}  Kg6 {[%clk 0:00:06]} 60. Kd5 {[%clk 0:00:27]}  Kxg5 {[%clk 0:00:06]} 0-1

[Event "January 2 Late 2024"]
[Site "https://www.chess.com"]
[Date "2024.01.02"]
[Round "4"]
[White "Dubreuil, Julien"]
[Black "Dias, Joao Batista"]
[Result "1-0"]
[Board "205"]
[TimeControl "180+1"]
[WhiteFideId "621285"]
[BlackFideId "2108240"]
[WhiteElo "2344"]
[BlackElo "1988"]
[WhiteTeam "FRA"]
[BlackTeam "BRA"]
[WhiteClock "0:02:38"]
[BlackClock "0:01:58"]

1. e4 {[%clk 0:03:00]}  e5 {[%clk 0:02:59]} 2. Nf3 {[%clk 0:03:00]}  Nc6 {[%clk 0:02:58]} 3. d4 {[%clk 0:03:00]}  exd4 {[%clk 0:02:58]} 4. Bc4 {[%clk 0:03:00]}  Be7 {[%clk 0:02:57]} 5. c3 {[%clk 0:02:59]}  d3 {[%clk 0:02:56]} 6. b4 {[%clk 0:02:58]}  d6 {[%clk 0:02:55]} 7. b5 {[%clk 0:02:57]}  Ne5 {[%clk 0:02:54]} 8. Bb3 {[%clk 0:02:57]}  Nxf3+ {[%clk 0:02:51]} 9. Qxf3 {[%clk 0:02:56]}  Be6 {[%clk 0:02:52]} 10. O-O {[%clk 0:02:54]}  Bxb3 {[%clk 0:02:51]} 11. axb3 {[%clk 0:02:54]}  Nf6 {[%clk 0:02:50]} 12. Rd1 {[%clk 0:02:50]}  O-O {[%clk 0:02:47]} 13. Rxd3 {[%clk 0:02:50]}  Qc8 {[%clk 0:02:47]} 14. h3 {[%clk 0:02:49]}  Qe6 {[%clk 0:02:46]} 15. c4 {[%clk 0:02:49]}  a6 {[%clk 0:02:39]} 16. Nc3 {[%clk 0:02:48]}  axb5 {[%clk 0:02:39]} 17. Rxa8 {[%clk 0:02:48]}  Rxa8 {[%clk 0:02:39]} 18. cxb5 {[%clk 0:02:47]}  Qxb3 {[%clk 0:02:32]} 19. Nd5 {[%clk 0:02:43]}  Qb1 {[%clk 0:02:23]} 20. Nxe7+ {[%clk 0:02:40]}  Kf8 {[%clk 0:02:16]} 21. Qd1 {[%clk 0:02:40]}  Kxe7 {[%clk 0:02:14]} 22. e5 {[%clk 0:02:40]}  Ne8 {[%clk 0:01:58]} 23. Bg5+ {[%clk 0:02:38]} 1-0

[Event "January 2 Late 2024"]
[Site "https://www.chess.com"]
[Date "2024.01.02"]
[Round "4"]
[White "Dmitriev, Sergey"]
[Black "Balla, Tamas-Kristof"]
[Result "1-0"]
[Board "206"]
[TimeControl "180+1"]
[WhiteFideId "14101785"]
[BlackFideId "1208497"]
[WhiteElo "1992"]
[BlackElo "2470"]
[WhiteTeam "UKR"]
[BlackTeam "ROU"]
[WhiteClock "0:00:13"]
[BlackClock "0:00:12"]

1. e4 {[%clk 0:03:00]}  c5 {[%clk 0:03:00]} 2. Nf3 {[%clk 0:03:00]}  Nc6 {[%clk 0:02:59]} 3. Bc4 {[%clk 0:02:57]}  e6 {[%clk 0:02:59]} 4. d4 {[%clk 0:02:55]}  cxd4 {[%clk 0:02:54]} 5. Nxd4 {[%clk 0:02:54]}  d5 {[%clk 0:02:55]} 6. exd5 {[%clk 0:02:51]}  exd5 {[%clk 0:02:54]} 7. Nxc6 {[%clk 0:02:51]}  bxc6 {[%clk 0:02:55]} 8. Bd3 {[%clk 0:02:50]}  Nf6 {[%clk 0:02:53]} 9. Bg5 {[%clk 0:02:48]}  Be7 {[%clk 0:02:52]} 10. O-O {[%clk 0:02:47]}  O-O {[%clk 0:02:50]} 11. Re1 {[%clk 0:02:44]}  Be6 {[%clk 0:02:48]} 12. Nc3 {[%clk 0:02:39]}  h6 {[%clk 0:02:41]} 13. Bh4 {[%clk 0:02:38]}  c5 {[%clk 0:02:35]} 14. Bf1 {[%clk 0:02:23]}  d4 {[%clk 0:02:27]} 15. Ne2 {[%clk 0:02:23]}  Rb8 {[%clk 0:02:20]} 16. b3 {[%clk 0:02:21]}  Nd5 {[%clk 0:02:10]} 17. Bg3 {[%clk 0:02:17]}  Bf6 {[%clk 0:02:02]} 18. Bxb8 {[%clk 0:02:15]}  Qxb8 {[%clk 0:02:00]} 19. Rc1 {[%clk 0:02:07]}  Bg4 {[%clk 0:01:55]} 20. h3 {[%clk 0:02:04]}  Bh5 {[%clk 0:01:54]} 21. Qd3 {[%clk 0:01:48]}  Bg6 {[%clk 0:01:37]} 22. Qc4 {[%clk 0:01:47]}  Qd6 {[%clk 0:01:33]} 23. g3 {[%clk 0:01:38]}  Nb6 {[%clk 0:01:25]} 24. Qa6 {[%clk 0:01:34]}  Bg5 {[%clk 0:01:23]} 25. f4 {[%clk 0:01:30]}  Bf6 {[%clk 0:01:23]} 26. Bg2 {[%clk 0:01:28]}  Nd5 {[%clk 0:01:19]} 27. Qxd6 {[%clk 0:01:26]}  Ne3 {[%clk 0:00:56]} 28. Qxc5 {[%clk 0:01:18]}  Rd8 {[%clk 0:00:41]} 29. Qc7 {[%clk 0:01:13]}  Re8 {[%clk 0:00:38]} 30. Bc6 {[%clk 0:01:09]}  Re6 {[%clk 0:00:36]} 31. Bd7 {[%clk 0:01:00]}  Re7 {[%clk 0:00:34]} 32. Qc8+ {[%clk 0:00:58]}  Kh7 {[%clk 0:00:34]} 33. Bg4 {[%clk 0:00:54]}  h5 {[%clk 0:00:29]} 34. Bf3 {[%clk 0:00:53]}  h4 {[%clk 0:00:27]} 35. g4 {[%clk 0:00:52]}  Re6 {[%clk 0:00:14]} 36. f5 {[%clk 0:00:52]}  Bxf5 {[%clk 0:00:13]} 37. gxf5 {[%clk 0:00:51]}  Rd6 {[%clk 0:00:13]} 38. Qc7 {[%clk 0:00:44]}  Be5 {[%clk 0:00:13]} 39. Qxf7 {[%clk 0:00:42]}  Rf6 {[%clk 0:00:11]} 40. Qh5+ {[%clk 0:00:40]}  Kg8 {[%clk 0:00:11]} 41. Bg2 {[%clk 0:00:32]}  Rxf5 {[%clk 0:00:09]} 42. Qxf5 {[%clk 0:00:31]}  Nxf5 {[%clk 0:00:10]} 43. Rcd1 {[%clk 0:00:29]}  Ne3 {[%clk 0:00:06]} 44. Rxd4 {[%clk 0:00:27]}  Nxc2 {[%clk 0:00:06]} 45. Rd8+ {[%clk 0:00:26]}  Kf7 {[%clk 0:00:06]} 46. Rc1 {[%clk 0:00:25]}  Ne3 {[%clk 0:00:05]} 47. Rdc8 {[%clk 0:00:25]}  Nf5 {[%clk 0:00:02]} 48. Ra8 {[%clk 0:00:23]}  Bd6 {[%clk 0:00:01]} 49. Rxa7+ {[%clk 0:00:23]}  Kg6 {[%clk 0:00:02]} 50. Nc3 {[%clk 0:00:22]}  Be5 {[%clk 0:00:02]} 51. Ne4 {[%clk 0:00:22]}  Bd4+ {[%clk 0:00:03]} 52. Kh2 {[%clk 0:00:18]}  Bxa7 {[%clk 0:00:04]} 53. Rc6+ {[%clk 0:00:17]}  Kf7 {[%clk 0:00:03]} 54. Nd6+ {[%clk 0:00:17]}  Ke6 {[%clk 0:00:03]} 55. Nxf5+ {[%clk 0:00:16]}  Kxf5 {[%clk 0:00:04]} 56. Ra6 {[%clk 0:00:16]}  Bb8+ {[%clk 0:00:04]} 57. Kh1 {[%clk 0:00:14]}  Ke5 {[%clk 0:00:04]} 58. Rg6 {[%clk 0:00:13]}  Kd4 {[%clk 0:00:03]} 59. Rxg7 {[%clk 0:00:13]}  Kc3 {[%clk 0:00:04]} 60. a4 {[%clk 0:00:13]}  Kb4 {[%clk 0:00:04]} 61. Rb7+ {[%clk 0:00:11]}  Ka5 {[%clk 0:00:04]} 62. Rxb8 {[%clk 0:00:11]}  Ka6 {[%clk 0:00:05]} 63. Rh8 {[%clk 0:00:12]}  Ka5 {[%clk 0:00:06]} 64. Rxh4 {[%clk 0:00:12]}  Ka6 {[%clk 0:00:05]} 65. Rg4 {[%clk 0:00:12]}  Ka5 {[%clk 0:00:06]} 66. h4 {[%clk 0:00:13]}  Ka6 {[%clk 0:00:06]} 67. h5 {[%clk 0:00:13]}  Ka5 {[%clk 0:00:07]} 68. h6 {[%clk 0:00:14]}  Ka6 {[%clk 0:00:08]} 69. h7 {[%clk 0:00:14]}  Ka5 {[%clk 0:00:09]} 70. h8=Q {[%clk 0:00:14]}  Ka6 {[%clk 0:00:10]} 71. Qf6+ {[%clk 0:00:14]}  Ka5 {[%clk 0:00:11]} 72. Qe5+ {[%clk 0:00:12]}  Ka6 {[%clk 0:00:12]} 73. Rg6+ {[%clk 0:00:12]}  Ka7 {[%clk 0:00:12]} 74. Qe7+ {[%clk 0:00:12]}  Kb8 {[%clk 0:00:12]} 75. Rg8# {[%clk 0:00:13]} 1-0

[Event "January 2 Late 2024"]
[Site "https://www.chess.com"]
[Date "2024.01.02"]
[Round "4"]
[White "Mesquita, Eduardo Barbosa"]
[Black "Fernandez Madrid, Carlos"]
[Result "0-1"]
[Board "207"]
[TimeControl "180+1"]
[WhiteFideId "22757163"]
[BlackFideId "2206030"]
[WhiteElo "2469"]
[BlackElo "2224"]
[WhiteTeam "BRA"]
[BlackTeam "ESP"]
[WhiteClock "0:00:00"]
[BlackClock "0:00:53"]

1. e4 {[%clk 0:03:00]}  g6 {[%clk 0:02:58]} 2. d4 {[%clk 0:03:00]}  Bg7 {[%clk 0:02:55]} 3. Nf3 {[%clk 0:03:00]}  d6 {[%clk 0:02:55]} 4. c4 {[%clk 0:03:00]}  Nc6 {[%clk 0:02:53]} 5. Be3 {[%clk 0:03:00]}  e5 {[%clk 0:02:52]} 6. d5 {[%clk 0:03:00]}  Nce7 {[%clk 0:02:52]} 7. Nc3 {[%clk 0:03:00]}  f5 {[%clk 0:02:52]} 8. Bd3 {[%clk 0:02:59]}  f4 {[%clk 0:02:51]} 9. Bd2 {[%clk 0:02:58]}  Nf6 {[%clk 0:02:52]} 10. O-O {[%clk 0:02:58]}  O-O {[%clk 0:02:49]} 11. b4 {[%clk 0:02:57]}  h6 {[%clk 0:02:47]} 12. Qc2 {[%clk 0:02:54]}  g5 {[%clk 0:02:47]} 13. c5 {[%clk 0:02:52]}  g4 {[%clk 0:02:47]} 14. Ne1 {[%clk 0:02:52]}  Ng6 {[%clk 0:02:47]} 15. c6 {[%clk 0:02:49]}  b6 {[%clk 0:02:47]} 16. a4 {[%clk 0:02:49]}  Nh5 {[%clk 0:02:40]} 17. a5 {[%clk 0:02:48]}  Rb8 {[%clk 0:02:33]} 18. axb6 {[%clk 0:02:47]}  axb6 {[%clk 0:02:33]} 19. Ra7 {[%clk 0:02:46]}  Rf7 {[%clk 0:02:32]} 20. Kh1 {[%clk 0:02:19]}  Qh4 {[%clk 0:02:32]} 21. Kg1 {[%clk 0:01:42]}  g3 {[%clk 0:02:27]} 22. Nf3 {[%clk 0:01:37]}  gxh2+ {[%clk 0:02:24]} 23. Kh1 {[%clk 0:01:36]}  Qf6 {[%clk 0:02:21]} 24. Nb5 {[%clk 0:01:26]}  Nh4 {[%clk 0:02:17]} 25. Rxc7 {[%clk 0:01:22]}  Nxf3 {[%clk 0:02:14]} 26. Rxf7 {[%clk 0:01:19]}  Qxf7 {[%clk 0:02:11]} 27. Nxd6 {[%clk 0:01:10]}  Qg6 {[%clk 0:02:01]} 28. c7 {[%clk 0:01:09]}  Ra8 {[%clk 0:01:51]} 29. Qc6 {[%clk 0:01:08]}  Nh4 {[%clk 0:01:44]} 30. Qe8+ {[%clk 0:00:37]}  Qxe8 {[%clk 0:01:31]} 31. Nxe8 {[%clk 0:00:38]}  Nf6 {[%clk 0:01:20]} 32. Nd6 {[%clk 0:00:35]}  f3 {[%clk 0:01:17]} 33. g3 {[%clk 0:00:27]}  Ng6 {[%clk 0:01:16]} 34. Kxh2 {[%clk 0:00:19]}  Bf8 {[%clk 0:01:12]} 35. Nf5 {[%clk 0:00:15]}  h5 {[%clk 0:01:06]} 36. Bg5 {[%clk 0:00:08]}  Ng4+ {[%clk 0:01:05]} 37. Kh3 {[%clk 0:00:07]}  Ra7 {[%clk 0:01:03]} 38. d6 {[%clk 0:00:02]}  Bxd6 {[%clk 0:00:56]} 39. Nxd6 {[%clk 0:00:02]}  Nxf2+ {[%clk 0:00:55]} 40. Kh2 {[%clk 0:00:01]}  Nxd3 {[%clk 0:00:53]} 41. Nxc8 {[%clk 0:00:00]}  Rxc7 {[%clk 0:00:53]} 0-1